fUSD/lending_fUSD_20250407
["ID","MTS","AMOUNT","RATE_DAILY","PERIOD"]
[357344438,1744009839420,-210.0,0.00097621,120]
[357344439,1744009839430,-210.0,0.00097631,120]
[357344440,1744009839440,-12845.42,0.000979,120]
[357344441,1744009839451,-266.83,0.00098715,2]
[357344442,1744009839463,-323.75,0.00099464,120]
[357344443,1744009839474,-990.9257,0.00099579,120]
[357344444,1744009839484,-179.19,0.0009999,30]
[357344445,1744009839495,-1020.01294584,0.00099999,120]
[357344446,1744009839504,-500.0,0.00099999,120]
[357344447,1744009839515,-3000.0,0.001,120]
[357344448,1744009839525,-20930.97,0.001,120]
[357344449,1744009839536,-500.0,0.001,120]
[357344450,1744009839546,-520.56,0.001,120]
[357344451,1744009839555,-500.0,0.001,120]
[357344452,1744009839564,-500.0,0.001,120]
[357344453,1744009839574,-150.0,0.001,120]
[357344454,1744009839583,-500.0,0.001,120]
[357344455,1744009839593,-2300.2075356,0.001,30]
[357344456,1744009839603,-500.0,0.001,120]
[357344457,1744009839612,-500.0,0.00100547,120]
[357344458,1744009839622,-266.83,0.00100979,2]
[357344459,1744009839632,-500.0,0.00101095,120]
[357344460,1744009839641,-500.0,0.00101643,120]
[357344461,1744009839651,-151.0,0.0010189,120]
[357344462,1744009839661,-500.0,0.00102191,120]
[357344464,1744009839671,-179.79,0.00102313,120]
[357344465,1744009839681,-500.0,0.00102739,120]
[357344466,1744009839691,-266.83,0.00103243,2]
[357344467,1744009839700,-539.65807563,0.00103287,120]
[357344468,1744009839709,-500.0,0.001035,120]
[357344469,1744009839719,-323.75,0.00103942,120]
[357344470,1744009839729,-266.83,0.00105507,2]
[357344471,1744009839739,-266.83,0.00107771,2]
[357344472,1744009839748,-323.75,0.0010842,120]
[357344473,1744009839758,-212.0,0.00109224,120]
[357344475,1744009839767,-210.0,0.00109234,120]
[357344476,1744009839777,-153.87,0.00109452,120]
[357344477,1744009839792,-177.433,0.0011,120]
[357344478,1744009839802,-1852.893,0.0011,120]
[357344479,1744009839811,-500.0,0.0011,120]
[357344480,1744009839821,-266.83,0.00110035,2]
[357344481,1744009839831,-18229.00000001,0.00111189,120]
[357344482,1744009839840,-179.19,0.0011119,30]
[357344483,1744009839849,-4517.0,0.001112,120]
[357344484,1744009839859,-1000.0,0.00111519,120]
[357344485,1744009839870,-7536.73630454,0.0011152,2]
[357344486,1744009839879,-266.83,0.00112299,2]
[357344487,1744009839889,-990.701,0.00112312,120]
[357344488,1744009839898,-4660.3352,0.00112312,120]
[357344489,1744009839908,-200.0,0.00112344,2]
[357344490,1744009839918,-15314.065382,0.00112402,9]
[357344491,1744009839928,-179.19,0.00112402,30]
[357344492,1744009839938,-1002.2503,0.0011241,120]
[357344493,1744009839947,-2000.0,0.00112411,120]
[357344494,1744009839957,-30198.8,0.00112411,2]
[357344495,1744009839967,-424.91749841,0.00112412,30]
[357344496,1744009839977,-323.75,0.00112898,120]
[357344497,1744009839987,-207.4,0.00113713,2]
[357344498,1744009839997,-266.83,0.00114563,2]
[357344499,1744009840182,-215.0738,0.00115082,2]
[357344500,1744009840192,-339.5,0.001158,30]
[357344501,1744009840202,-3828.5163455,0.00116441,9]
[357344502,1744009840211,-223.0315306,0.00116451,2]
[357344503,1744009840221,-323.75,0.00117377,120]
[357344504,1744009840231,-231.28369723,0.0011782,2]
[357344505,1744009840240,-239.84119403,0.00119189,2]
[357344506,1744009840250,-11485.5490365,0.0011999,12]
[357344507,1744009840259,-500.0,0.0012,120]
[357344508,1744009840269,-500.0,0.0012,120]
[357344509,1744009840279,-7390.34864666,0.0012,120]
[357344510,1744009840293,-500.0,0.0012,120]
[357344511,1744009840302,-500.0,0.0012,120]
[357344512,1744009840311,-500.0,0.0012,120]
[357344513,1744009840321,-500.0,0.0012,120]
[357344514,1744009840330,-500.0,0.0012,120]
[357344515,1744009840339,-500.0,0.0012,120]
[357344516,1744009840348,-500.0,0.0012,120]
[357344517,1744009840358,-500.0,0.0012,120]
[357344518,1744009840367,-150.99999901,0.0012,120]
[357344519,1744009840376,-234.0,0.0012,120]
[357344520,1744009840386,-413.07851738,0.0012,120]
[357344522,1744009840622,-429.0,0.0012,120]
[357344523,1744009840640,-157.92148262,0.0012,120]
[357344524,1744009840650,-500.0,0.0012,120]
[357344525,1744009840660,-248.71531821,0.00120558,2]
[357344526,1744009840669,-323.75,0.00121855,120]
[357344527,1744009840680,-3828.5163455,0.00121917,14]
[357344528,1744009840689,-257.91778498,0.00121927,2]
[357344529,1744009840699,-153.87,0.00123219,120]
[357344530,1744009840708,-350.0,0.00123288,120]
[357344531,1744009840717,-267.46074303,0.00123296,2]
[357344532,1744009840726,-1612.86,0.00123545,120]
[357344533,1744009840735,-277.35679052,0.00124665,2]
[357344534,1744009840744,-2292.39785854,0.00125,120]
[357344535,1744009840753,-287.61899177,0.00126034,2]
[357344536,1744009840765,-323.75,0.00126333,120]
[357344537,1744009840774,-298.26089446,0.00127403,2]
[357344538,1744009840785,-188.0407136,0.0012798,120]
[357344539,1744009840794,-3828.5163455,0.0012799,19]
[357344540,1744009840803,-1288.99,0.00128,90]
[357344541,1744009840812,-309.29654756,0.00128772,2]
[357344542,1744009840823,-320.74051982,0.00130141,2]
[357344543,1744009840832,-3828.5163455,0.0013019,21]
[357344544,1744009840842,-4589.0,0.001302,117]
[357344545,1744009840851,-332.60791905,0.0013151,2]
[357344546,1744009840860,-151.0407136,0.0013198,120]
[357344547,1744009840868,-344.91441206,0.00132879,2]
[357344548,1744009840878,-1281.0,0.001342,120]
[357344549,1744009840887,-3828.5163455,0.00134238,24]
[357344550,1744009840897,-357.6762453,0.00134248,2]
[357344551,1744009840906,-151.0407136,0.0013498,120]
[357344552,1744009840915,-10000.0,0.00135,120]
[357344553,1744009840925,-370.91026638,0.00135617,2]
[357344554,1744009840934,-500.0,0.00136,120]
[357344555,1744009840944,-899.0,0.00136,90]
[357344556,1744009840953,-300.0,0.001366,49]
[357344557,1744009840962,-3828.5163455,0.0013669,26]
[357344558,1744009840972,-600.0,0.001367,49]
[357344559,1744009840981,-11485.5490365,0.0013678,26]
[357344560,1744009840991,-3828.5163455,0.0013679,26]
[357344561,1744009841000,-900.0,0.001368,49]
[357344562,1744009841009,-422.75824524,0.00136876,120]
[357344563,1744009841018,-172.2035395,0.00136886,120]
[357344564,1744009841028,-4602.4209,0.00136886,120]
[357344565,1744009841040,-11485.5490365,0.0013689,26]
[357344566,1744009841049,-7064.70896781,0.001369,120]
[357344567,1744009841059,-500.0,0.001369,120]
[357344568,1744009841068,-1200.0,0.001369,49]
[357344569,1744009841076,-151.28,0.00136946,120]
[357344570,1744009841085,-76570.32691,0.00136956,26]
[357344571,1744009841095,-213.0,0.00136959,120]
[357344572,1744009841104,-201.0,0.00136959,120]
[357344573,1744009841114,-15314.065382,0.00136965,26]
[357344574,1744009841123,-22971.098073,0.00136966,26]
[357344575,1744009841132,-12613.9933747,0.00136966,22]
[357344576,1744009841141,-500.0,0.00136973,30]
[357344577,1744009841150,-153.04065958,0.00136973,30]
[357344578,1744009841159,-500.0,0.00136973,14]
[357344579,1744009841168,-636.83711825,0.00136973,14]
[357344580,1744009841177,-500.0,0.00136973,15]
[357344581,1744009841187,-500.0,0.00136973,14]
[357344582,1744009841198,-500.0,0.00136973,14]
[357344583,1744009841208,-500.0,0.00136973,14]
[357344584,1744009841218,-12613.9933747,0.00136976,22]
[357344585,1744009841227,-204.15131766,0.00136976,30]
[357344586,1744009841237,-151.28,0.00136976,120]
[357344587,1744009841247,-185.18739871,0.0013698,120]
[357344588,1744009841256,-500.0,0.0013698,120]
[357344589,1744009841266,-1007.80108607,0.00136985,120]
[357344590,1744009841275,-150.0,0.00136985,120]
[357344591,1744009841290,-688.90581863,0.00136985,120]
[357344592,1744009841300,-274.67078101,0.00136986,120]
[357344593,1744009841310,-500.0,0.00136986,120]
[357344594,1744009841319,-500.0,0.00136986,120]
[357344595,1744009841329,-500.0,0.00136986,120]
[357344596,1744009841338,-500.0,0.00136986,120]
[357344597,1744009841347,-500.0,0.00136986,120]
[357344598,1744009841357,-500.0,0.00136986,120]
[357344599,1744009841367,-500.0,0.00136986,120]
[357344600,1744009841376,-500.0,0.00136986,120]
[357344601,1744009841386,-500.0,0.00136986,120]
[357344602,1744009841395,-500.0,0.00136986,120]
[357344603,1744009841405,-625.41668502,0.00136986,120]
[357344604,1744009841415,-500.0,0.00136986,120]
[357344605,1744009841424,-500.0,0.00136986,120]
[357344606,1744009841434,-500.0,0.00136986,120]
[357344607,1744009841444,-500.0,0.00136986,120]
[357344608,1744009841459,-500.0,0.00136986,120]
[357344609,1744009841468,-500.0,0.00136986,120]
[357344610,1744009841478,-500.0,0.00136986,120]
[357344611,1744009841488,-500.0,0.00136986,120]
[357344612,1744009841499,-500.0,0.00136986,120]
[357344613,1744009841507,-500.0,0.00136986,120]
[357344614,1744009841517,-500.0,0.00136986,120]
[357344615,1744009841527,-500.0,0.00136986,120]
[357344616,1744009841540,-386.72343913,0.00136986,120]
[357344617,1744009841550,-136.13662373,0.00136986,120]
[357344618,1744009841569,-277.87683158,0.00136986,120]
[357344619,1744009841599,-85.98654469,0.00136986,120]
[357344620,1744009841608,-249.73947955,0.00136986,120]
[357344621,1744009841617,-500.0,0.00136986,120]
[357344622,1744009841627,-500.0,0.00136986,120]
[357344623,1744009841637,-500.0,0.00136986,120]
[357344624,1744009841645,-500.0,0.00136986,120]
[357344625,1744009841654,-500.0,0.00136986,120]
[357344626,1744009841664,-500.0,0.00136986,120]
[357344627,1744009841674,-500.0,0.00136986,120]
[357344628,1744009841683,-500.0,0.00136986,120]
[357344629,1744009841692,-521.46341467,0.00136986,120]
[357344630,1744009841702,-500.0,0.00136986,120]
[357344631,1744009841711,-500.0,0.00136986,120]
[357344632,1744009841721,-76.36056109,0.00136986,10]
[357344633,1744009841736,-423.63943891,0.00136986,10]
[357344634,1744009841746,-500.0,0.00136986,10]
[357344635,1744009841755,-500.0,0.00136986,10]
[357344636,1744009841766,-500.0,0.00136986,10]
[357344637,1744009841776,-500.0,0.00136986,10]
[357344638,1744009841787,-500.0,0.00136986,10]
[357344639,1744009841797,-500.0,0.00136986,10]
[357344640,1744009841807,-465.8693623,0.00136986,120]
[357344641,1744009841817,-500.0,0.00136986,10]
[357344642,1744009841826,-500.0,0.00136986,120]
[357344643,1744009841837,-500.0,0.00136986,10]
[357344644,1744009841846,-500.0,0.00136986,120]
[357344645,1744009841856,-205.19,0.00136986,10]
[357344646,1744009841866,-500.0,0.00136986,120]
[357344647,1744009841875,-500.0,0.00136986,120]
[357344648,1744009841885,-500.0,0.00136986,120]
[357344649,1744009841894,-500.0,0.00136986,120]
[357344650,1744009841904,-500.0,0.00136986,120]
[357344651,1744009841914,-500.0,0.00136986,120]
[357344652,1744009841923,-500.0,0.00136986,120]
[357344653,1744009841933,-500.0,0.00136986,120]
[357344654,1744009841942,-177.82989879,0.00136986,120]
[357344655,1744009841959,-322.17010121,0.00136986,120]
[357344656,1744009841969,-500.0,0.00136986,120]
[357344657,1744009841979,-500.0,0.00136986,120]
[357344658,1744009841989,-501.71104053,0.00136986,120]
[357344659,1744009841999,-500.0,0.00136986,120]
[357344660,1744009842009,-500.0,0.00136986,120]
[357344661,1744009842018,-500.0,0.00136986,10]
[357344662,1744009842028,-500.0,0.00136986,10]
[357344663,1744009842038,-500.0,0.00136986,10]
[357344664,1744009842048,-500.0,0.00136986,120]
[357344665,1744009842058,-324.61,0.00136986,10]
[357344666,1744009842070,-500.0,0.00136986,120]
[357344667,1744009842080,-500.0,0.00136986,120]
[357344668,1744009842090,-500.0,0.00136986,120]
[357344669,1744009842099,-500.0,0.00136986,120]
[357344670,1744009842109,-500.0,0.00136986,120]
[357344671,1744009842118,-500.0,0.00136986,120]
[357344672,1744009842127,-472.26725876,0.00136986,120]
[357344673,1744009842137,-500.0,0.00136986,120]
[357344674,1744009842146,-606.57361833,0.00136986,120]
[357344675,1744009842155,-591.16285112,0.00136986,120]
[357344676,1744009842164,-500.0,0.00136986,120]
[357344677,1744009842173,-500.0,0.00136986,120]
[357344678,1744009842183,-410.58057204,0.00136986,120]
[357344679,1744009842194,-500.0,0.00136986,30]
[357344680,1744009842203,-500.0,0.00136986,30]
[357344681,1744009842212,-500.0,0.00136986,120]
[357344682,1744009842222,-598.06091338,0.00136986,120]
[357344683,1744009842231,-500.0,0.00136986,120]
[357344684,1744009842241,-122.88864463,0.00136986,120]
[357344685,1744009842257,-377.11135537,0.00136986,120]
[357344686,1744009842265,-500.0,0.00136986,120]
[357344687,1744009842275,-500.0,0.00136986,120]
[357344688,1744009842285,-500.0,0.00136986,120]
[357344689,1744009842297,-500.0,0.00136986,120]
[357344690,1744009842307,-541.12,0.00136986,120]
[357344691,1744009842317,-500.0,0.00136986,120]
[357344692,1744009842326,-507.76392588,0.00136986,120]
[357344693,1744009842336,-500.0,0.00136986,120]
[357344694,1744009842345,-500.0,0.00136986,120]
[357344695,1744009842355,-500.0,0.00136986,120]
[357344696,1744009842364,-500.0,0.00136986,120]
[357344697,1744009842374,-500.0,0.00136986,120]
[357344698,1744009842384,-500.0,0.00136986,120]
[357344699,1744009842394,-196.32146167,0.00136986,120]
[357344700,1744009842403,-2000.0,0.00136986,2]
[357344701,1744009842413,-2000.0,0.00136986,2]
[357344702,1744009842423,-2000.0,0.00136986,2]
[357344703,1744009842433,-500.0,0.00136986,120]
[357344704,1744009842443,-500.0,0.00136986,120]
[357344705,1744009842453,-500.0,0.00136986,120]
[357344706,1744009842464,-500.0,0.00136986,120]
[357344707,1744009842476,-500.0,0.00136986,120]
[357344708,1744009842485,-500.0,0.00136986,120]
[357344709,1744009842495,-500.0,0.00136986,120]
[357344710,1744009842505,-500.0,0.00136986,120]
[357344711,1744009842515,-500.0,0.00136986,120]
[357344712,1744009842524,-500.0,0.00136986,120]
[357344713,1744009842534,-500.0,0.00136986,120]
[357344714,1744009842549,-500.0,0.00136986,120]
[357344716,1744009842560,-533.25852027,0.00136986,120]
[357344717,1744009842570,-500.0,0.00136986,120]
[357344719,1744009842581,-500.0,0.00136986,120]
[357344720,1744009842590,-500.0,0.00136986,120]
[357344722,1744009842601,-500.0,0.00136986,120]
[357344724,1744009842611,-500.0,0.00136986,120]
[357344726,1744009842621,-500.0,0.00136986,120]
[357344727,1744009842630,-500.0,0.00136986,120]
[357344729,1744009842640,-500.0,0.00136986,120]
[357344731,1744009842650,-500.0,0.00136986,120]
[357344733,1744009842660,-500.0,0.00136986,120]
[357344734,1744009842669,-500.0,0.00136986,120]
[357344736,1744009842678,-500.0,0.00136986,120]
[357344738,1744009842687,-500.0,0.00136986,120]
[357344739,1744009842696,-500.0,0.00136986,120]
[357344740,1744009842706,-500.0,0.00136986,120]
[357344741,1744009842716,-610.17,0.00136986,120]
[357344742,1744009842725,-500.0,0.00136986,120]
[357344743,1744009842736,-500.0,0.00136986,120]
[357344744,1744009842746,-235.6393166,0.00136986,120]
[357344745,1744009842756,-500.0,0.00136986,120]
[357344747,1744009842766,-500.0,0.00136986,120]
[357344749,1744009842776,-500.0,0.00136986,120]
[357344750,1744009842790,-500.0,0.00136986,120]
[357344751,1744009842801,-500.0,0.00136986,120]
[357344752,1744009842811,-500.0,0.00136986,120]
[357344753,1744009842821,-500.0,0.00136986,120]
[357344754,1744009842832,-500.0,0.00136986,120]
[357344755,1744009842842,-500.0,0.00136986,120]
[357344756,1744009842852,-500.0,0.00136986,120]
[357344757,1744009842861,-386.6,0.00136986,120]
[357344758,1744009842871,-500.0,0.00136986,120]
[357344759,1744009842881,-500.0,0.00136986,120]
[357344760,1744009842891,-152.71542021,0.00136986,120]
[357344762,1744009842922,-347.28457979,0.00136986,120]
[357344765,1744009842932,-500.0,0.00136986,120]
[357344767,1744009842943,-500.0,0.00136986,120]
[357344770,1744009842953,-141.07355064,0.00136986,120]
[357344775,1744009842992,711.95557,0.00048088,30]
[357344778,1744009843017,-358.92644936,0.00136986,120]
[357344780,1744009843026,-500.0,0.00136986,120]
[357344781,1744009843047,-112.78651901,0.00136986,120]
[357344782,1744009843061,-387.21348099,0.00136986,120]
[357344783,1744009843071,-500.0,0.00136986,120]
[357344784,1744009843080,-500.0,0.00136986,120]
[357344785,1744009843090,-500.0,0.00136986,120]
[357344786,1744009843099,-500.0,0.00136986,120]
[357344787,1744009843109,-500.0,0.00136986,120]
[357344788,1744009843118,-500.0,0.00136986,120]
[357344789,1744009843128,-500.0,0.00136986,120]
[357344790,1744009843138,-500.0,0.00136986,120]
[357344791,1744009843148,-500.0,0.00136986,120]
[357344792,1744009843157,-500.0,0.00136986,120]
[357344793,1744009843167,-500.0,0.00136986,120]
[357344794,1744009843177,-500.0,0.00136986,120]
[357344795,1744009843187,-313.64814712,0.00136986,120]
[357344796,1744009843197,-500.0,0.00136986,120]
[357344797,1744009843206,-626.13389691,0.00136986,120]
[357344798,1744009843216,-500.0,0.00136986,120]
[357344799,1744009843225,-500.0,0.00136986,120]
[357344800,1744009843234,-500.0,0.00136986,120]
[357344801,1744009843243,-500.0,0.00136986,7]
[357344802,1744009843252,-500.0,0.00136986,120]
[357344803,1744009843262,-500.0,0.00136986,120]
[357344804,1744009843272,-500.0,0.00136986,120]
[357344805,1744009843281,-500.0,0.00136986,120]
[357344806,1744009843293,-500.0,0.00136986,120]
[357344807,1744009843302,-500.0,0.00136986,120]
[357344808,1744009843311,-633.22490945,0.00136986,120]
[357344809,1744009843320,-500.0,0.00136986,120]
[357344810,1744009843329,-500.0,0.00136986,120]
[357344811,1744009843339,-500.0,0.00136986,120]
[357344825,1744009843579,-500.0,0.00136986,120]
[357344827,1744009843589,-500.0,0.00136986,120]
[357344829,1744009843599,-500.0,0.00136986,120]
[357344831,1744009843609,-174.86232536,0.00136986,120]
[357344834,1744009843618,-500.0,0.00136986,120]
[357344837,1744009843627,-500.0,0.00136986,120]
[357344840,1744009843637,-500.0,0.00136986,120]
[357344843,1744009843646,-500.0,0.00136986,120]
[357344846,1744009843656,-500.0,0.00136986,120]
[357344849,1744009843666,-500.0,0.00136986,120]
[357344852,1744009843675,-500.0,0.00136986,120]
[357344855,1744009843685,-500.0,0.00136986,120]
[357344858,1744009843697,-500.0,0.00136986,120]
[357344861,1744009843706,-500.0,0.00136986,120]
[357344864,1744009843716,-170.08497544,0.00136986,120]
[357344867,1744009843726,-500.0,0.00136986,120]
[357344870,1744009843736,-500.0,0.00136986,120]
[357344873,1744009843746,-500.0,0.00136986,120]
[357344875,1744009843755,-500.0,0.00136986,120]
[357344878,1744009843765,-500.0,0.00136986,120]
[357344882,1744009843774,-500.0,0.00136986,120]
[357344884,1744009843783,-500.0,0.00136986,120]
[357344888,1744009843795,-500.0,0.00136986,120]
[357344890,1744009843804,-264.64261323,0.00136986,120]
[357344893,1744009843813,-500.0,0.00136986,120]
[357344896,1744009843823,-500.0,0.00136986,120]
[357344899,1744009843832,-500.0,0.00136986,120]
[357344902,1744009843842,-500.0,0.00136986,120]
[357344905,1744009843851,-500.0,0.00136986,120]
[357344908,1744009843861,-343.39967319,0.00136986,120]
[357344911,1744009843870,-500.0,0.00136986,120]
[357344914,1744009843879,-500.0,0.00136986,120]
[357344917,1744009843888,-500.0,0.00136986,120]
[357344920,1744009843897,-500.0,0.00136986,120]
[357344923,1744009843907,-500.0,0.00136986,120]
[357344926,1744009843916,-321.43966393,0.00136986,120]
[357344929,1744009843925,-500.0,0.00136986,120]
[357344932,1744009843934,-518.40487843,0.00136986,120]
[357344939,1744009843963,-30.00209373,0.00136986,120]
[357344942,1744009843973,-500.0,0.00136986,120]
[357344945,1744009843982,-530.53233701,0.00136986,120]
[357344949,1744009843995,-500.0,0.00136986,120]
[357344951,1744009844004,-500.0,0.00136986,120]
[357344953,1744009844013,-500.0,0.00136986,120]
[357344955,1744009844022,-258.43567218,0.00136986,120]
[357344958,1744009844031,-500.0,0.00136986,120]
[357344960,1744009844042,-500.67438107,0.00136986,60]
[357344963,1744009844052,-441.94591601,0.00136986,120]
[357344968,1744009844065,-58.05408399,0.00136986,120]
[357344971,1744009844074,-500.0,0.00136986,120]
[357344974,1744009844084,-500.0,0.00136986,120]
[357344977,1744009844093,-500.0,0.00136986,120]
[357344980,1744009844103,-215.11185305,0.00136986,120]
[357344994,1744009844214,-284.88814695,0.00136986,120]
[357344996,1744009844223,-500.0,0.00136986,120]
[357344998,1744009844232,-500.0,0.00136986,120]
[357345000,1744009844242,-500.0,0.00136986,120]
[357345002,1744009844251,-238.59831131,0.00136986,120]
[357345004,1744009844261,-500.0,0.00136986,120]
[357345006,1744009844270,-500.0,0.00136986,120]
[357345008,1744009844279,-500.0,0.00136986,120]
[357345010,1744009844290,-464.86039539,0.00136986,120]
[357345012,1744009844299,-500.0,0.00136986,120]
[357345014,1744009844308,-500.0,0.00136986,120]
[357345016,1744009844318,-500.0,0.00136986,120]
[357345018,1744009844327,-500.0,0.00136986,120]
[357345020,1744009844336,-500.0,0.00136986,120]
[357345022,1744009844346,-553.46970713,0.00136986,120]
[357345024,1744009844359,-500.0,0.00136986,2]
[357345026,1744009844368,-500.0,0.00136986,2]
[357345028,1744009844377,-500.0,0.00136986,120]
[357345030,1744009844387,-500.0,0.00136986,2]
[357345032,1744009844395,-500.0,0.00136986,2]
[357345034,1744009844405,-311.48,0.00136986,2]
[357345036,1744009844415,-503.84154729,0.00136986,120]
[357345038,1744009844424,-500.0,0.00136986,120]
[357345039,1744009844434,-500.0,0.00136986,120]
[357345041,1744009844443,-500.0,0.00136986,120]
[357345044,1744009844456,-500.0,0.00136986,120]
[357345046,1744009844466,-500.0,0.00136986,120]
[357345047,1744009844475,-275.95172854,0.00136986,120]
[357345050,1744009844485,-500.0,0.00136986,120]
[357345051,1744009844496,-500.0,0.00136986,120]
[357345053,1744009844505,-500.0,0.00136986,120]
[357345056,1744009844516,-500.0,0.00136986,120]
[357345058,1744009844525,-500.0,0.00136986,120]
[357345060,1744009844538,-500.0,0.00136986,120]
[357345061,1744009844549,-500.0,0.00136986,120]
[357345063,1744009844559,-500.0,0.00136986,120]
[357345066,1744009844569,-500.0,0.00136986,120]
[357345068,1744009844579,-500.0,0.00136986,120]
[357345070,1744009844588,-500.0,0.00136986,120]
[357345071,1744009844597,-500.0,0.00136986,120]
[357345073,1744009844607,-500.0,0.00136986,120]
[357345075,1744009844616,-500.0,0.00136986,120]
[357345077,1744009844626,-500.0,0.00136986,120]
[357345079,1744009844637,-500.0,0.00136986,120]
[357345081,1744009844646,-500.0,0.00136986,120]
[357345083,1744009844655,-500.0,0.00136986,120]
[357345085,1744009844665,-500.0,0.00136986,120]
[357345087,1744009844674,-500.0,0.00136986,120]
[357345089,1744009844683,-500.0,0.00136986,120]
[357345091,1744009844693,-500.0,0.00136986,120]
[357345093,1744009844702,-500.0,0.00136986,120]
[357345095,1744009844712,-500.0,0.00136986,120]
[357345097,1744009844722,-500.0,0.00136986,120]
[357345099,1744009844732,-529.93149105,0.00136986,120]
[357345101,1744009844741,-500.0,0.00136986,120]
[357345103,1744009844752,-414.87702448,0.00136986,120]
[357345105,1744009844762,-500.0,0.00136986,120]
[357345107,1744009844772,-500.0,0.00136986,120]
[357345109,1744009844781,-500.0,0.00136986,120]
[357345111,1744009844794,-500.0,0.00136986,120]
[357345113,1744009844804,-526.78559181,0.00136986,120]
[357345115,1744009844814,-500.0,0.00136986,120]
[357345117,1744009844824,-500.0,0.00136986,120]
[357345119,1744009844833,-500.0,0.00136986,120]
[357345121,1744009844843,-500.0,0.00136986,120]
[357345123,1744009844852,-500.0,0.00136986,120]
[357345125,1744009844862,-500.0,0.00136986,120]
[357345127,1744009844872,-500.0,0.00136986,120]
[357345129,1744009844882,-500.0,0.00136986,120]
[357345131,1744009844892,-500.0,0.00136986,120]
[357345133,1744009844901,-500.0,0.00136986,120]
[357345135,1744009844911,-500.0,0.00136986,120]
[357345137,1744009844920,-500.0,0.00136986,120]
[357345139,1744009844929,-500.0,0.00136986,120]
[357345141,1744009844939,-500.0,0.00136986,120]
[357345143,1744009844948,-500.0,0.00136986,120]
[357345145,1744009844957,-500.0,0.00136986,120]
[357345147,1744009844967,-500.0,0.00136986,120]
[357345149,1744009844976,-500.0,0.00136986,120]
[357345151,1744009844986,-500.0,0.00136986,120]
[357345153,1744009844996,-500.0,0.00136986,120]
[357345155,1744009845005,-500.0,0.00136986,120]
[357345157,1744009845016,-500.0,0.00136986,120]
[357345159,1744009845025,-500.0,0.00136986,120]
[357345161,1744009845034,-500.0,0.00136986,120]
[357345164,1744009845055,-500.0,0.00136986,120]
[357345166,1744009845067,-500.0,0.00136986,120]
[357345168,1744009845077,-224.57,0.00136986,120]
[357345170,1744009845087,-500.0,0.00136986,120]
[357345172,1744009845098,-500.0,0.00136986,120]
[357345174,1744009845108,-519.08619782,0.00136986,120]
[357345176,1744009845118,-500.0,0.00136986,120]
[357345178,1744009845128,-500.0,0.00136986,120]
[357345180,1744009845138,-500.0,0.00136986,120]
[357345183,1744009845148,-500.0,0.00136986,120]
[357345184,1744009845158,-500.0,0.00136986,120]
[357345187,1744009845171,-500.0,0.00136986,120]
[357345189,1744009845180,-500.0,0.00136986,120]
[357345191,1744009845191,-500.0,0.00136986,120]
[357345193,1744009845201,-452.46,0.00136986,120]
[357345195,1744009845212,-500.0,0.00136986,120]